bitfinex/quotes_BTCUSD_20220213
["timestamp","ask_amount","ask_price","bid_price","bid_amount"]
[1644772582939,0.38230251,42185.0,42184.0,0.048782]
[1644772583140,1.237201,42184.0,42182.0,0.0021]
[1644772583341,1.384501,42184.0,42182.0,0.0021]
[1644772583540,0.16142975,42183.0,42182.0,0.0021]
[1644772583739,0.33932975,42183.0,42181.0,0.0071]
[1644772583940,0.36252975,42183.0,42181.0,0.0071]
[1644772584139,0.265638,42183.0,42181.0,0.0071]
[1644772584340,0.0593,42182.0,42181.0,0.0071]
[1644772586899,0.0593,42182.0,42181.0,0.00723648]
[1644772587103,0.0232,42183.0,42181.0,0.34033948]
[1644772587302,0.00021051,42185.0,42183.0,0.333103]
[1644772587505,0.00010639,42185.0,42183.0,0.333103]
[1644772587703,0.00010639,42185.0,42183.0,0.33323948]
[1644772587904,0.0232,42184.0,42183.0,0.333103]
[1644772588202,0.09318462,42184.0,42183.0,0.333103]
[1644772588401,0.09318462,42184.0,42183.0,0.33323948]
[1644772589037,0.0232,42184.0,42183.0,0.33323948]
[1644772589238,0.487042,42211.0,42185.0,0.333103]
[1644772589239,0.7520162,42202.0,42185.0,0.333103]
[1644772589440,0.16141803,42199.0,42190.0,0.333103]
[1644772589638,0.6606,42202.0,42190.0,0.633103]
[1644772589639,0.16141803,42202.0,42190.0,0.633103]
[1644772589840,0.16141803,42202.0,42192.0,0.333103]
[1644772590044,0.22158606,42200.0,42192.0,0.58038893]
[1644772590338,0.22158606,42200.0,42192.0,0.33323948]
[1644772590339,0.06880283,42196.0,42192.0,0.33323948]
[1644772590739,0.06880283,42196.0,42187.0,0.3]
[1644772590740,0.06880283,42196.0,42187.0,0.30013648]
[1644772590940,0.06880283,42196.0,42188.0,0.333103]
[1644772591139,0.12808183,42196.0,42189.0,0.333103]
[1644772591339,0.12808183,42196.0,42188.0,0.41678834]
[1644772591540,0.12808183,42196.0,42187.0,0.3]
[1644772591743,0.05,42195.0,42187.0,0.3]
[1644772591941,0.11856,42194.0,42187.0,0.30013648]
[1644772592140,0.059282,42194.0,42187.0,0.30013648]
[1644772592343,0.05928,42193.0,42187.0,0.30013648]
[1644772592543,0.05928,42193.0,42187.0,0.00013648]
[1644772592812,0.059281,42192.0,42185.0,0.00013648]
[1644772593001,0.05965285,42192.0,42185.0,0.00013648]
[1644772593298,0.05965285,42192.0,42184.0,0.26139841]
[1644772593501,0.05965285,42192.0,42184.0,0.00013648]
[1644772593700,0.25657829,42190.0,42183.0,0.12157193]
[1644772593901,0.059284,42189.0,42183.0,0.1212]
[1644772594102,0.059282,42187.0,42183.0,0.00037192]
[1644772594303,0.118566,42187.0,42183.0,0.00037192]
[1644772594502,0.118566,42187.0,42183.0,0.0005084]
[1644772594503,0.37450926,42187.0,42183.0,0.0005084]
[1644772594700,0.37450926,42187.0,42183.0,0.00037192]
[1644772594901,0.47450926,42187.0,42183.0,0.00037192]
[1644772595104,0.47450926,42187.0,42182.0,0.00013648]
[1644772595301,0.47450926,42187.0,42181.0,0.0071]
[1644772595302,0.059294,42185.0,42183.0,0.00037191]
[1644772595501,0.059291,42184.0,42183.0,0.00037191]
[1644772596303,0.059291,42184.0,42182.0,0.00013648]
[1644772596540,0.059291,42184.0,42181.0,0.0076084]
[1644772596541,0.34258921,42183.0,42181.0,0.0076084]
[1644772596741,0.57977241,42182.0,42181.0,0.0076084]
[1644772597142,0.67977241,42182.0,42181.0,0.0076084]
[1644772597340,0.39539741,42182.0,42181.0,0.0076084]
[1644772597540,0.39539741,42182.0,42181.0,0.00723648]
[1644772597744,0.42909141,42182.0,42181.0,0.00723648]
[1644772598243,0.39539741,42182.0,42181.0,0.00723648]
[1644772598641,0.47687624,42182.0,42181.0,0.00723648]
[1644772599544,0.47687624,42182.0,42181.0,0.00223648]
[1644772601410,1.0,42180.0,42179.0,0.00366912]
[1644772601606,1.0,42180.0,42177.0,0.0011]
[1644772601607,0.059309,42178.0,42177.0,0.0011]
[1644772602003,0.055579,42178.0,42177.0,0.0011]
[1644772603606,0.102879,42178.0,42177.0,0.0011]
[1644772604136,0.152879,42178.0,42177.0,0.0011]
[1644772605542,0.15966297,42178.0,42177.0,0.0011]
[1644772605742,0.120763,42178.0,42177.0,0.0011]
[1644772605939,0.087069,42178.0,42177.0,0.0011]
[1644772606343,0.120763,42178.0,42177.0,0.0011]
[1644772606540,0.120763,42178.0,42175.0,0.00466636]
[1644772606741,1.270946,42177.0,42175.0,6.636e-05]
[1644772607039,0.225239,42176.0,42175.0,6.636e-05]
[1644772607241,0.47080058,42176.0,42172.0,0.0043]
[1644772607444,0.033694,42175.0,42172.0,0.0043]
[1644772607685,0.0473,42175.0,42172.0,0.0043]
[1644772609685,0.0473,42175.0,42172.0,0.00451853]
[1644772610589,0.99929022,42174.0,42172.0,0.00241853]
[1644772610886,0.22,42173.0,42172.0,0.00036583]
[1644772611084,0.27,42173.0,42172.0,0.00036583]
[1644772611753,0.97,42173.0,42171.0,0.00686583]
[1644772611957,0.059313,42172.0,42171.0,0.00686583]
[1644772616698,0.327938,42173.0,42171.0,0.00686583]
[1644772616699,0.059313,42173.0,42172.0,0.11862599]
[1644772616897,0.059314,42174.0,42172.0,0.11876144]
[1644772617298,0.087925,42173.0,42172.0,0.11876144]
[1644772617497,0.087925,42173.0,42172.0,0.10876144]
[1644772617498,0.059302,42173.0,42172.0,0.10876144]
[1644772618699,0.059314,42174.0,42172.0,0.10876144]
[1644772619243,0.118617,42174.0,42172.0,0.10876144]
[1644772619843,0.059301,42173.0,42172.0,0.10876144]
[1644772621048,0.159301,42173.0,42172.0,0.10876144]
[1644772621243,0.059301,42173.0,42172.0,0.10876144]
[1644772623385,0.159301,42173.0,42172.0,0.10876144]
[1644772624386,0.206601,42173.0,42172.0,0.10876144]
[1644772624986,0.49291295,42173.0,42172.0,0.10876144]
[1644772625386,0.59291295,42173.0,42172.0,0.10876144]
[1644772626443,0.30517814,42173.0,42172.0,0.10876144]
[1644772626646,0.30517814,42173.0,42168.0,0.00070324]
[1644772626647,1.0,42170.0,42168.0,0.00070324]
[1644772626844,0.135243,42169.0,42168.0,0.00070324]
[1644772627449,0.135243,42169.0,42159.0,0.00141353]
[1644772627450,1.0,42166.0,42163.0,0.00140648]
[1644772627749,0.135257,42165.0,42163.0,0.00140648]
[1644772627946,0.156634,42165.0,42163.0,0.00140648]
[1644772628347,0.206634,42165.0,42163.0,0.00140648]
[1644772629749,0.206634,42165.0,42162.0,0.00033199]
[1644772629750,0.059327,42163.0,42157.0,0.00326347]
[1644772629948,0.1958834,42158.0,42156.0,0.01411661]
[1644772630203,0.1958834,42158.0,42156.0,0.01278847]
[1644772630204,0.0473,42157.0,42156.0,0.01278847]
[1644772630403,0.0473,42157.0,42156.0,0.34634947]
[1644772630604,0.12397792,42157.0,42156.0,0.34634947]
[1644772631003,0.12397792,42157.0,42156.0,0.01278847]
[1644772631204,0.28330592,42157.0,42156.0,0.01278847]
[1644772631603,0.27643164,42157.0,42156.0,0.01278847]
[1644772634456,0.27643164,42157.0,42154.0,0.00153299]
[1644772634457,0.30209751,42156.0,42154.0,0.00153299]
[1644772634658,0.30209751,42156.0,42147.0,0.0588]
[1644772634659,1.0,42154.0,42147.0,0.0588]
[1644772634862,1.0,42154.0,42149.0,0.00072117]
[1644772634863,0.059349,42152.0,42149.0,0.00072117]
[1644772635056,0.075923,42151.0,42149.0,0.00072117]
[1644772635261,0.075923,42151.0,42135.0,0.10995828]
[1644772635262,1.0,42149.0,42135.0,0.10995828]
[1644772635463,1.0,42149.0,42130.0,0.0033881]
[1644772635464,1.0,42149.0,42131.0,0.0132]
[1644772635465,0.04218666,42136.0,42131.0,0.0132]
[1644772635657,0.30609208,42135.0,42131.0,0.0132]
[1644772635870,0.30609208,42135.0,42125.0,0.0234]
[1644772635871,0.135295,42135.0,42126.0,0.0013822]
[1644772636059,0.106672,42135.0,42133.0,0.08282865]
[1644772636259,0.106672,42135.0,42134.0,0.333881]
[1644772636456,0.0473,42135.0,42134.0,0.333881]
[1644772636662,0.0473,42142.0,42134.0,0.333881]
[1644772636856,0.0473,42143.0,42138.0,0.24734361]
[1644772637059,0.0473,42143.0,42138.0,0.22234361]
[1644772637259,0.1,42146.0,42139.0,0.333881]
[1644772637458,0.04233589,42150.0,42136.0,0.00781334]
[1644772637459,0.3,42144.0,42136.0,0.00781334]
[1644772637693,0.077925,42143.0,42124.0,0.00781334]
[1644772637893,0.059353,42145.0,42125.0,0.533881]
[1644772637894,0.0473,42142.0,42125.0,0.533881]
[1644772638091,0.0473,42143.0,42126.0,0.333881]
[1644772638292,0.059354,42141.0,42137.0,0.32524204]
[1644772638593,0.059354,42141.0,42138.0,0.333881]
[1644772638793,0.178069,42155.0,42140.0,0.333881]
[1644772638995,0.1782271,42157.0,42140.0,0.333881]
[1644772638996,0.00036471,42150.0,42140.0,0.333881]
[1644772639198,0.00036471,42150.0,42140.0,0.323881]
[1644772639594,0.00036471,42150.0,42147.0,0.20264963]
[1644772639793,0.23114949,42155.0,42148.0,0.333745]
[1644772639994,0.23114949,42155.0,42147.0,0.20264963]
[1644772639995,0.059335,42153.0,42147.0,0.20264963]
[1644772640194,0.00036474,42151.0,42148.0,0.333745]
[1644772640995,0.00036474,42151.0,42150.0,0.333745]
[1644772641195,0.05,42156.0,42150.0,0.27533323]
[1644772641447,0.00036473,42152.0,42150.0,0.27533323]
[1644772641643,0.00036473,42152.0,42151.0,0.333745]
[1644772641846,0.00036473,42152.0,42151.0,1.88887984]
[1644772642040,0.00036473,42152.0,42151.0,0.32887984]
[1644772642241,0.16156701,42169.0,42151.0,1.583745]
[1644772642441,0.16156701,42169.0,42163.0,0.08095219]
[1644772642645,0.27264211,42166.0,42163.0,0.08095219]
[1644772642945,0.16156701,42169.0,42164.0,0.680955]
[1644772643141,0.16156701,42169.0,42166.0,0.333655]
[1644772643541,0.16156701,42169.0,42166.0,0.33378984]
[1644772643740,2.0,42170.0,42166.0,0.33378984]
[1644772643741,2.00014902,42170.0,42169.0,0.23919086]
[1644772643940,2.00014902,42170.0,42169.0,0.57284586]
[1644772644544,1.99514902,42170.0,42169.0,0.57284586]
[1644772644739,1.995,42170.0,42169.0,0.57284586]
[1644772646196,1.995,42170.0,42169.0,0.5729807]
[1644772646401,1.995,42170.0,42169.0,1.87514586]
[1644772646598,1.995,42170.0,42169.0,1.92514586]
[1644772646796,1.995,42170.0,42169.0,0.67014586]
[1644772646797,1.45662331,42170.0,42169.0,0.67014586]
[1644772647399,1.45662331,42170.0,42169.0,0.6702807]
[1644772647799,1.45662331,42170.0,42169.0,0.67014586]
[1644772648002,1.45662331,42170.0,42169.0,0.62014586]
[1644772648299,1.45662331,42170.0,42169.0,1.87514586]
[1644772648699,1.45662331,42170.0,42169.0,1.97514586]
[1644772649643,0.01903428,42170.0,42169.0,1.97514586]
[1644772649941,0.015,42187.0,42173.0,1.255]
[1644772650141,0.015,42187.0,42176.0,0.333655]
[1644772650341,0.015,42187.0,42177.0,0.0473]
[1644772650540,0.015,42187.0,42178.0,1.579902]
[1644772650742,0.015,42187.0,42182.0,0.333655]
[1644772650940,0.015,42187.0,42183.0,0.23525753]
[1644772651138,0.015,42187.0,42184.0,0.333655]
[1644772651547,0.015,42187.0,42184.0,0.380955]
[1644772651746,0.015,42187.0,42184.0,1.635955]
[1644772651941,0.015,42187.0,42184.0,0.380955]
[1644772652542,0.01,42189.0,42184.0,0.380955]
[1644772654699,0.00014875,42187.0,42184.0,0.380955]
[1644772655494,0.02088603,42185.0,42184.0,0.380955]
[1644772657348,0.00036719,42187.0,42186.0,1.255]
[1644772657546,0.00036719,42187.0,42186.0,1.635955]
[1644772657744,0.00036719,42187.0,42186.0,1.80252049]
[1644772658144,0.01,42189.0,42187.0,0.59248518]
[1644772658348,0.01036717,42189.0,42188.0,0.0473]
[1644772658547,0.23789164,42195.0,42188.0,0.380955]
[1644772658548,0.22325881,42195.0,42188.0,0.380955]
[1644772658746,0.00146841,42197.0,42188.0,0.380955]
[1644772658947,0.05,42196.0,42188.0,0.380955]
[1644772660049,0.01,42199.0,42196.0,0.333655]
[1644772660296,0.01,42199.0,42196.0,0.64610157]
[1644772660494,0.01,42199.0,42196.0,0.380955]
[1644772660695,8.9946008,42206.0,42196.0,0.380955]
[1644772660696,0.05,42203.0,42196.0,0.64557613]
[1644772660896,8.9896008,42206.0,42196.0,1.90057613]
[1644772661095,8.9896008,42206.0,42202.0,0.24695454]
[1644772661299,8.9896008,42206.0,42203.0,0.333655]
[1644772662195,8.9896008,42206.0,42202.0,0.24695454]
[1644772662496,8.9896008,42206.0,42203.0,0.333655]
[1644772662695,8.9896008,42206.0,42202.0,0.24695454]
[1644772663295,8.9896008,42206.0,42203.0,0.333655]
[1644772663495,8.9896008,42206.0,42202.0,0.24695454]
[1644772663696,8.9896008,42206.0,42198.0,0.333655]
[1644772664141,0.00015064,42204.0,42198.0,0.333655]
[1644772664340,0.05,42203.0,42198.0,0.333655]
[1644772664543,0.059265,42203.0,42198.0,0.333655]
[1644772664742,0.059265,42203.0,42198.0,0.60296555]
[1644772664943,0.109265,42203.0,42198.0,0.333655]
[1644772665542,0.10936268,42203.0,42198.0,0.333655]
[1644772665741,0.02324013,42202.0,42198.0,0.333655]
[1644772666243,0.02324013,42202.0,42199.0,0.2553392]
[1644772666443,0.02324013,42202.0,42200.0,0.333655]
[1644772666644,0.02360994,42202.0,42200.0,0.333655]
[1644772667042,0.07360994,42202.0,42200.0,0.333655]
[1644772667242,0.02360994,42202.0,42200.0,0.333655]
[1644772667443,0.06860994,42202.0,42200.0,0.333655]
[1644772667691,0.06824013,42202.0,42200.0,0.333655]
[1644772667988,0.01824013,42202.0,42200.0,0.333655]
[1644772668189,0.06824013,42202.0,42200.0,0.333655]
[1644772668391,0.01824013,42202.0,42200.0,0.41445296]
[1644772668590,0.01824013,42202.0,42201.0,0.0473]
[1644772668789,0.01824013,42202.0,42201.0,0.380955]
[1644772668990,0.00036953,42203.0,42201.0,0.380955]
[1644772669194,0.00036953,42203.0,42202.0,1.888655]
[1644772669399,7.21297156,42206.0,42204.0,1.3967]
[1644772669590,7.19897156,42206.0,42205.0,2.17619976]
[1644772669791,6.48002045,42206.0,42205.0,2.335955]
[1644772669992,6.48002045,42206.0,42205.0,2.40963537]
[1644772669993,2.42677295,42206.0,42205.0,2.40963537]
[1644772670193,2.34628626,42206.0,42205.0,2.10963537]
[1644772670398,1.62932092,42206.0,42205.0,2.16886637]
[1644772670590,1.17862092,42206.0,42205.0,2.90166637]
[1644772670790,0.05415136,42206.0,42205.0,2.71114337]
[1644772670992,0.00023503,42218.0,42209.0,1.5967]
[1644772671192,0.01582113,42219.0,42210.0,0.972055]
[1644772671193,0.01605616,42219.0,42210.0,0.972055]
[1644772671457,0.01605616,42219.0,42211.0,0.0473]
[1644772671458,0.05,42212.0,42211.0,0.0473]
[1644772671653,0.05,42212.0,42211.0,0.380955]
[1644772672650,0.05,42212.0,42211.0,0.333655]
[1644772674150,0.13816203,42212.0,42211.0,0.333655]
[1644772674655,0.13816203,42212.0,42201.0,0.00014097]
[1644772674855,0.2418677,42204.0,42202.0,0.333655]
[1644772675054,0.05,42210.0,42201.0,0.00014097]
[1644772675055,0.05,42203.0,42201.0,0.00014097]
[1644772675296,0.05,42203.0,42202.0,0.333655]
[1644772676298,0.0003683,42205.0,42202.0,0.333655]
[1644772676500,0.0503683,42205.0,42202.0,0.333655]
[1644772676697,0.00023206,42211.0,42208.0,0.4007366]
[1644772676900,0.0001754,42212.0,42209.0,0.333655]
[1644772677200,0.00023206,42211.0,42209.0,0.333655]
[1644772677398,0.0001754,42212.0,42209.0,0.333655]
[1644772677399,0.00040746,42212.0,42209.0,0.333655]
[1644772677598,0.00040746,42212.0,42208.0,0.4007366]
[1644772677599,0.0001754,42212.0,42210.0,0.333655]
[1644772678800,0.05965746,42212.0,42210.0,0.333655]
[1644772679040,0.00040746,42212.0,42210.0,0.333655]
[1644772679840,0.0001754,42212.0,42210.0,0.333655]
[1644772680041,0.00040746,42212.0,42210.0,0.333655]
[1644772680243,0.00012049,42213.0,42210.0,0.333655]
[1644772680440,0.00023206,42212.0,42210.0,0.333655]
[1644772680743,0.00012049,42213.0,42210.0,0.333655]
[1644772680943,0.00023206,42212.0,42210.0,0.333655]
[1644772681140,0.06676066,42217.0,42210.0,0.333655]
[1644772681341,0.00023206,42217.0,42210.0,0.333655]
[1644772681541,0.00023206,42218.0,42210.0,0.333655]
[1644772681741,0.00023206,42217.0,42210.0,0.333655]
[1644772681941,0.25379199,42219.0,42210.0,0.333655]
[1644772682142,0.25241313,42219.0,42210.0,0.333655]
[1644772682342,0.13392113,42219.0,42210.0,0.333655]
[1644772682542,0.059241,42218.0,42210.0,0.333655]
[1644772684590,0.059241,42218.0,42212.0,0.06756684]
[1644772684791,0.059241,42218.0,42213.0,0.59648759]
[1644772684993,0.13392113,42219.0,42214.0,1.255]
[1644772684994,0.01582113,42219.0,42214.0,1.255]
[1644772685194,0.01582113,42219.0,42215.0,0.333655]
[1644772685395,0.01582113,42219.0,42216.0,0.34242219]
[1644772685600,0.118,42228.0,42219.0,1.255]
[1644772685797,0.01,42229.0,42223.0,0.08733094]
[1644772686100,0.01,42229.0,42224.0,0.333655]
[1644772687143,0.01014815,42229.0,42224.0,0.333655]
[1644772688145,0.01,42229.0,42225.0,0.27282016]
[1644772688345,0.01014815,42229.0,42226.0,0.333655]
[1644772689244,0.01,42229.0,42226.0,1.588655]
[1644772689445,0.01,42229.0,42226.0,0.333655]
[1644772689645,0.005,42229.0,42226.0,0.333655]
[1644772690193,0.00037491,42230.0,42226.0,0.333655]
[1644772690390,0.00012718,42228.0,42226.0,1.588655]
[1644772690591,0.00014873,42230.0,42226.0,0.333655]
[1644772690792,0.00014873,42230.0,42229.0,0.333655]
[1644772690991,0.00014873,42230.0,42226.0,0.333655]
[1644772691593,0.11844,42236.0,42226.0,0.333655]
[1644772691793,0.11844,42236.0,42227.0,0.27918001]
[1644772691992,0.00014873,42230.0,42228.0,0.333655]
[1644772692594,0.00014873,42230.0,42228.0,1.588655]
[1644772692795,0.00014873,42230.0,42229.0,0.59673833]
[1644772692998,0.10382718,42238.0,42230.0,0.333655]
[1644772693196,0.00014873,42231.0,42230.0,0.333655]
[1644772693399,0.00014873,42231.0,42230.0,1.9045961]
[1644772694241,0.01,42239.0,42232.0,0.0684142]
[1644772694443,0.00037547,42233.0,42232.0,0.4020692]
[1644772694641,0.00037547,42233.0,42232.0,0.68389468]
[1644772695240,0.01,42239.0,42232.0,0.61548048]
[1644772695442,0.01,42239.0,42233.0,0.333655]
[1644772695643,0.00037546,42235.0,42233.0,0.333655]
[1644772695841,0.00037546,42235.0,42228.0,1.25507945]
[1644772695842,0.00037546,42235.0,42229.0,0.333655]
[1644772696042,0.00037546,42235.0,42231.0,1.588655]
[1644772696244,0.00037546,42235.0,42232.0,1.32910972]
[1644772696444,0.01,42239.0,42233.0,1.85488525]
[1644772696842,0.00037546,42235.0,42233.0,1.85488525]
[1644772697060,0.00037546,42235.0,42234.0,1.5370943]
[1644772697244,0.00037546,42235.0,42234.0,1.8707493]
[1644772697547,0.00037546,42235.0,42234.0,1.588655]
[1644772697791,0.00023197,42238.0,42234.0,1.588655]
[1644772697992,0.01,42239.0,42236.0,1.588655]
[1644772697993,0.00037545,42237.0,42236.0,1.588655]
[1644772698492,0.00037545,42237.0,42236.0,0.333655]
[1644772698893,0.00023197,42238.0,42236.0,0.333655]
[1644772699195,0.01035385,42239.0,42237.0,0.61163725]
[1644772699393,0.00023197,42238.0,42237.0,0.333655]
[1644772699693,0.01035385,42239.0,42237.0,0.333655]
[1644772700096,0.01,42239.0,42238.0,0.633655]
[1644772700295,0.01,42239.0,42238.0,0.730955]
[1644772700499,0.01,42239.0,42238.0,0.480955]
[1644772700896,0.01,42239.0,42238.0,0.383655]
[1644772701545,0.01,42239.0,42238.0,0.430955]
[1644772702146,0.01,42239.0,42238.0,0.380955]
[1644772702544,0.01,42239.0,42238.0,0.480955]
[1644772703546,0.01,42239.0,42238.0,0.75657192]
[1644772705614,0.01011939,42239.0,42238.0,0.75665662]
[1644772706816,0.00174394,42247.0,42243.0,0.02076291]
[1644772706817,0.00151197,42247.0,42243.0,0.02076291]
[1644772707017,0.00151197,42247.0,42244.0,0.333655]
[1644772707213,0.00174463,42247.0,42244.0,0.333655]
[1644772707413,0.00023266,42247.0,42244.0,0.333655]
[1644772707614,0.05943066,42248.0,42244.0,0.333655]
[1644772708816,0.05943066,42248.0,42245.0,0.2609458]
[1644772709056,0.05943066,42248.0,42246.0,0.333655]
[1644772711456,0.11862966,42248.0,42246.0,0.563655]
[1644772712798,0.11862966,42248.0,42239.0,0.333012]
[1644772712996,0.0592,42245.0,42239.0,0.333012]
[1644772713397,0.05943266,42245.0,42239.0,0.333012]
[1644772713599,0.00014844,42244.0,42239.0,0.333012]
[1644772713799,0.25746055,42240.0,42239.0,0.333012]
[1644772713999,0.74554966,42240.0,42238.0,8.47e-05]
[1644772714200,3.4340653,42240.0,42238.0,0.3330967]
[1644772714398,3.53429796,42240.0,42238.0,0.3330967]
[1644772714799,3.43429796,42240.0,42238.0,0.3330967]
[1644772715397,3.37508396,42240.0,42238.0,0.3330967]
[1644772715598,3.3748513,42240.0,42238.0,0.333012]
[1644772715797,3.4748513,42240.0,42238.0,0.333012]
[1644772716448,3.3748513,42240.0,42238.0,0.333012]
[1644772716745,0.35570445,42240.0,42238.0,0.333012]
[1644772716944,0.35570445,42240.0,42237.0,0.333012]
[1644772716945,0.35547179,42240.0,42237.0,0.333012]
[1644772717644,0.059211,42239.0,42237.0,0.333012]
[1644772717845,0.13616234,42239.0,42237.0,0.333012]
[1644772718043,0.04753266,42239.0,42237.0,0.333012]
[1644772719043,0.10674366,42239.0,42237.0,0.333012]
[1644772719244,0.08198116,42238.0,42237.0,0.333012]
[1644772723795,0.08198116,42238.0,42237.0,0.563012]
[1644772724445,0.12928116,42238.0,42237.0,0.563012]
[1644772724647,0.12928116,42238.0,42237.0,0.558012]
[1644772725847,0.12928116,42238.0,42237.0,0.23]
[1644772726047,0.12941036,42238.0,42237.0,0.56313564]
[1644772726248,0.12941036,42238.0,42237.0,0.23006764]
[1644772728710,0.38899183,42238.0,42237.0,0.23006764]
[1644772728911,1.0,42237.0,42223.0,0.05]
[1644772729112,0.118452,42234.0,42221.0,0.4445]
[1644772729313,0.26169244,42229.0,42222.0,0.333068]
[1644772729510,0.06564286,42224.0,42222.0,0.333068]
[1644772729711,0.0473,42223.0,42222.0,0.333068]
[1644772729911,0.26487066,42223.0,42222.0,0.333068]
[1644772730114,0.32410366,42223.0,42222.0,0.333068]
[1644772730417,0.20714861,42222.0,42213.0,0.333068]
[1644772730611,0.0473,42221.0,42213.0,0.333068]
[1644772731210,0.26662137,42216.0,42213.0,0.333068]
[1644772731461,0.32586037,42216.0,42213.0,0.333068]
[1644772732656,0.08840845,42215.0,42213.0,0.333068]
[1644772732857,0.39097213,42215.0,42213.0,0.333068]
[1644772733060,0.106543,42215.0,42213.0,0.333068]
[1644772733256,0.0473,42215.0,42213.0,0.333068]
[1644772734254,0.0473,42215.0,42212.0,0.00037881]
[1644772734255,0.106544,42215.0,42212.0,0.00037881]
[1644772734657,0.106544,42215.0,42213.0,0.23]
[1644772735496,0.0473,42215.0,42213.0,0.23]
[1644772735698,0.0473,42215.0,42214.0,0.333068]
[1644772735896,0.0473,42215.0,42213.0,0.23]
[1644772736098,0.0473,42215.0,42214.0,0.333068]
[1644772736397,0.0473,42215.0,42213.0,0.23]
[1644772736796,0.25301921,42216.0,42213.0,0.23]
[1644772736997,0.0473,42215.0,42213.0,0.23]
[1644772737397,0.25301921,42216.0,42213.0,0.23]
[1644772737599,0.0473,42215.0,42213.0,0.23]
[1644772738499,0.0473,42215.0,42214.0,0.333068]
[1644772738949,0.046279,42215.0,42214.0,0.333068]
[1644772739147,0.046279,42215.0,42213.0,0.23]
[1644772739546,0.046279,42215.0,42214.0,0.333068]
[1644772739948,0.046279,42215.0,42213.0,0.23]
[1644772740149,0.046279,42215.0,42214.0,0.333068]
[1644772740348,0.046279,42215.0,42213.0,0.23]
[1644772741149,0.046279,42215.0,42214.0,0.333068]
[1644772741350,0.046279,42215.0,42214.0,0.33318862]
[1644772742798,0.046279,42215.0,42214.0,0.00012062]
[1644772743197,0.046279,42215.0,42214.0,0.33318862]
[1644772745599,0.059239,42217.0,42214.0,0.33318862]
[1644772745800,0.059239,42217.0,42214.0,0.00012062]
[1644772746003,0.00014735,42215.0,42214.0,0.00012062]
[1644772746199,0.00014735,42215.0,42214.0,0.33318862]
[1644772747547,0.00014735,42215.0,42214.0,0.00012062]
[1644772748049,0.04744735,42215.0,42214.0,0.00012062]
[1644772749350,4.43681138,42213.0,42209.0,0.333203]
[1644772749648,0.106544,42212.0,42209.0,0.333203]
[1644772750302,0.31011334,42212.0,42209.0,0.333203]
[1644772750702,0.106544,42212.0,42209.0,0.633203]
[1644772750903,4.43681138,42213.0,42209.0,0.633203]
[1644772751103,4.43681138,42213.0,42209.0,0.333203]
[1644772751804,4.43681138,42213.0,42209.0,0.5457129]
[1644772752006,4.43681138,42213.0,42209.0,0.60530123]
[1644772752405,4.43681138,42213.0,42210.0,0.333203]
[1644772753005,4.43681138,42213.0,42211.0,0.26653715]
[1644772753210,4.43681138,42213.0,42212.0,0.333203]
[1644772757570,4.43681138,42213.0,42212.0,0.563203]
[1644772758600,4.43681138,42213.0,42212.0,0.83674502]
[1644772760005,4.43681138,42213.0,42212.0,0.90871007]
[1644772760905,4.43691081,42213.0,42212.0,0.90871007]
[1644772761954,4.43691081,42213.0,42212.0,0.63516805]
[1644772762146,4.43691081,42213.0,42212.0,0.563203]
[1644772763447,4.43691081,42213.0,42212.0,0.82756799]
[1644772764247,4.43691081,42213.0,42212.0,0.563203]
[1644772765400,4.43691081,42213.0,42212.0,0.91954703]
[1644772766800,3.89913127,42213.0,42212.0,0.91954703]
[1644772767904,3.89913127,42213.0,42212.0,2.17454703]
[1644772768206,3.89913127,42213.0,42212.0,2.27184703]
[1644772768403,3.89913127,42213.0,42212.0,2.37184703]
[1644772770557,3.89499221,42213.0,42212.0,2.37184703]
[1644772770760,2.89170969,42213.0,42212.0,2.37184703]
[1644772770958,2.21958035,42213.0,42212.0,2.37184703]
[1644772771158,2.21958035,42213.0,42212.0,2.54516092]
[1644772771159,0.63286033,42213.0,42212.0,2.54516092]
[1644772771358,0.63286033,42213.0,42212.0,2.34407566]
[1644772772359,0.63286033,42213.0,42212.0,2.59584695]
[1644772772560,0.63286033,42213.0,42212.0,2.29407566]
[1644772772999,0.63286033,42213.0,42212.0,2.54584695]
[1644772773400,0.63216995,42213.0,42212.0,2.54481795]
[1644772775306,0.63216995,42213.0,42212.0,2.29304666]
[1644772775904,0.63216995,42213.0,42212.0,2.43474666]
[1644772776303,0.63216995,42213.0,42212.0,2.68657566]
[1644772776854,0.63216995,42213.0,42212.0,2.68657136]
[1644772777057,0.63216995,42213.0,42212.0,2.43474666]
[1644772778156,9.943e-05,42213.0,42212.0,2.18589014]
[1644772779659,9.943e-05,42213.0,42212.0,2.19536514]
[1644772780062,9.943e-05,42213.0,42212.0,2.18589014]
[1644772781015,9.943e-05,42213.0,42212.0,2.4376545]
[1644772781217,9.943e-05,42213.0,42212.0,2.47318188]
[1644772782215,9.943e-05,42213.0,42212.0,2.18148188]
[1644772782417,9.943e-05,42213.0,42212.0,1.97971752]
[1644772782615,9.943e-05,42213.0,42212.0,1.97933194]
[1644772785383,9.943e-05,42213.0,42212.0,0.3356354]
[1644772786380,9.943e-05,42213.0,42212.0,1.87179653]
[1644772786578,0.26319673,42223.0,42215.0,0.059229]
[1644772786778,0.26319673,42223.0,42218.0,0.222697]
[1644772787277,0.26319673,42223.0,42218.0,0.2251184]
[1644772787923,0.31742573,42223.0,42218.0,0.2251184]
[1644772788118,0.31742573,42223.0,42218.0,0.21546908]
[1644772788317,0.20913924,42219.0,42218.0,0.21546908]
[1644772789019,0.20913924,42219.0,42218.0,0.2151184]
[1644772789819,0.2863695,42219.0,42218.0,0.2151184]
[1644772790019,0.20913924,42219.0,42218.0,0.4451184]
[1644772790422,0.20413924,42219.0,42218.0,0.4451184]
[1644772791318,0.20413924,42219.0,42218.0,0.2151184]
[1644772792270,0.05931746,42222.0,42218.0,0.2151184]
[1644772792469,8.746e-05,42222.0,42218.0,0.2151184]
[1644772792867,8.746e-05,42222.0,42218.0,0.21546379]
[1644772793287,8.746e-05,42222.0,42218.0,0.21046379]
[1644772793670,0.11854546,42222.0,42218.0,0.21046379]
[1644772793872,0.07742753,42220.0,42218.0,0.2101184]
[1644772794069,0.07742753,42220.0,42218.0,0.21046379]
[1644772794671,0.19589953,42220.0,42218.0,0.21046379]